[Event "*** Titled Tuesday Blitz"]
[Site "Chess.com"]
[Date "2020.10.20"]
[Round "1"]
[White "Aleksey_Sorokin"]
[Black "Bacyanide"]
[Result "1-0"]
[WhiteElo "2838"]
[BlackElo "2418"]
[TimeControl "180+1"]
[EndTime "10:08:19 PDT"]
[Termination "Aleksey_Sorokin won on time"]

1. d4 {[%clk 0:03:00.7]} 1... Nf6 {[%clk 0:02:53.5]} 2. c4 {[%clk 0:02:59.9]}
2... g6 {[%clk 0:02:52.3]} 3. Nc3 {[%clk 0:02:59.4]} 3... Bg7 {[%clk 0:02:50.3]}
4. e4 {[%clk 0:02:59.4]} 4... d6 {[%clk 0:02:50.3]} 5. Nf3 {[%clk 0:03:00.3]}
5... O-O {[%clk 0:02:49]} 6. Be2 {[%clk 0:03:00.7]} 6... Nc6 {[%clk 0:02:49.5]}
7. d5 {[%clk 0:02:59.8]} 7... Nb8 {[%clk 0:02:42]} 8. O-O {[%clk 0:02:59.5]}
8... a6 {[%clk 0:02:35]} 9. h3 {[%clk 0:02:56.3]} 9... e6 {[%clk 0:02:24.2]} 10.
Be3 {[%clk 0:02:55]} 10... exd5 {[%clk 0:02:23]} 11. exd5 {[%clk 0:02:55.1]}
11... Re8 {[%clk 0:02:22.7]} 12. Bd3 {[%clk 0:02:54.8]} 12... Nbd7 {[%clk
0:02:21.4]} 13. Qd2 {[%clk 0:02:54]} 13... Nc5 {[%clk 0:02:19.4]} 14. Bc2 {[%clk
0:02:41]} 14... Nfe4 {[%clk 0:02:18.4]} 15. Nxe4 {[%clk 0:02:40.3]} 15... Nxe4
{[%clk 0:02:19.3]} 16. Bxe4 {[%clk 0:02:40.7]} 16... Rxe4 {[%clk 0:02:19.6]} 17.
Rae1 {[%clk 0:02:36]} 17... Bf5 {[%clk 0:02:12.6]} 18. Bd4 {[%clk 0:02:32.4]}
18... Qe7 {[%clk 0:02:01.7]} 19. Rxe4 {[%clk 0:02:24.8]} 19... Qxe4 {[%clk
0:02:00.6]} 20. Bxg7 {[%clk 0:02:08.9]} 20... Kxg7 {[%clk 0:01:59.4]} 21. Nd4
{[%clk 0:02:07.1]} 21... Re8 {[%clk 0:01:53.3]} 22. Rc1 {[%clk 0:01:58]} 22...
Re7 {[%clk 0:01:35.4]} 23. b3 {[%clk 0:01:33.3]} 23... Qd3 {[%clk 0:01:32.2]}
24. Qxd3 {[%clk 0:01:26.8]} 24... Bxd3 {[%clk 0:01:33.1]} 25. f3 {[%clk
0:01:26.8]} 25... g5 {[%clk 0:01:31.7]} 26. Kf2 {[%clk 0:01:26.6]} 26... h5
{[%clk 0:01:29.5]} 27. g4 {[%clk 0:01:24.1]} 27... h4 {[%clk 0:01:26.1]} 28. Rc3
{[%clk 0:01:20.6]} 28... Bb1 {[%clk 0:01:22.5]} 29. a3 {[%clk 0:01:17.5]} 29...
f5 {[%clk 0:01:21.5]} 30. Rc1 {[%clk 0:01:13.6]} 30... Bd3 {[%clk 0:01:03.7]}
31. Rd1 {[%clk 0:01:04]} 31... fxg4 {[%clk 0:00:58.1]} 32. Rxd3 {[%clk
0:00:56.7]} 32... g3+ {[%clk 0:00:58.1]} 33. Kf1 {[%clk 0:00:57]} 33... Kf6
{[%clk 0:00:54.2]} 34. Ne6 {[%clk 0:00:56.7]} 34... c6 {[%clk 0:00:51.5]} 35.
Kg2 {[%clk 0:00:51]} 35... cxd5 {[%clk 0:00:49.9]} 36. cxd5 {[%clk 0:00:51.9]}
36... Re8 {[%clk 0:00:48.9]} 37. Rc3 {[%clk 0:00:50.6]} 37... Ke5 {[%clk
0:00:47.3]} 38. Nxg5 {[%clk 0:00:46.5]} 38... Kxd5 {[%clk 0:00:44.1]} 39. Ne4
{[%clk 0:00:37.1]} 39... Kd4 {[%clk 0:00:41.9]} 40. Rc2 {[%clk 0:00:34.2]} 40...
d5 {[%clk 0:00:36.6]} 41. Rd2+ {[%clk 0:00:34.2]} 41... Ke3 {[%clk 0:00:30.8]}
42. Rxd5 {[%clk 0:00:33.8]} 42... Rc8 {[%clk 0:00:30.8]} 43. Rd2 {[%clk
0:00:30.2]} 43... Rc1 {[%clk 0:00:28.8]} 44. Rb2 {[%clk 0:00:29.3]} 44... Ra1
{[%clk 0:00:26.9]} 45. a4 {[%clk 0:00:28.5]} 45... b5 {[%clk 0:00:26.8]} 46.
axb5 {[%clk 0:00:27.8]} 46... axb5 {[%clk 0:00:27.7]} 47. Nc3 {[%clk 0:00:28.1]}
47... b4 {[%clk 0:00:20.5]} 48. Nd5+ {[%clk 0:00:28.2]} 48... Kd3 {[%clk
0:00:20.9]} 49. Nxb4+ {[%clk 0:00:20.1]} 49... Kc3 {[%clk 0:00:20.5]} 50. Rc2+
{[%clk 0:00:20.5]} 50... Kxb4 {[%clk 0:00:19.9]} 51. Rc4+ {[%clk 0:00:20.7]}
51... Kxb3 {[%clk 0:00:19.3]} 52. Rxh4 {[%clk 0:00:21.6]} 52... Kc3 {[%clk
0:00:14.9]} 53. Re4 {[%clk 0:00:21.6]} 53... Kd3 {[%clk 0:00:13.6]} 54. h4
{[%clk 0:00:22.1]} 54... Ra8 {[%clk 0:00:09]} 55. Kxg3 {[%clk 0:00:21.7]} 55...
Rg8+ {[%clk 0:00:08.7]} 56. Rg4 {[%clk 0:00:21.7]} 56... Rf8 {[%clk 0:00:08.6]}
57. h5 {[%clk 0:00:21.2]} 57... Rf5 {[%clk 0:00:05.6]} 58. h6 {[%clk 0:00:20.3]}
58... Rh5 {[%clk 0:00:05.5]} 59. Rh4 {[%clk 0:00:20.3]} 59... Rg5+ {[%clk
0:00:04.8]} 60. Kf4 {[%clk 0:00:20.5]} 60... Rg8 {[%clk 0:00:05.7]} 61. h7
{[%clk 0:00:20.6]} 61... Rf8+ {[%clk 0:00:05.7]} 62. Kg5 {[%clk 0:00:21]} 62...
Rh8 {[%clk 0:00:06.6]} 63. Kf6 {[%clk 0:00:21.1]} 63... Ke3 {[%clk 0:00:06.6]}
64. Kg7 {[%clk 0:00:21.2]} 64... Re8 {[%clk 0:00:05.3]} 65. h8=Q {[%clk
0:00:21.4]} 65... Kxf3 {[%clk 0:00:06.2]} 66. Qxe8 {[%clk 0:00:20.2]} 1-0

[Event "*** Titled Tuesday Blitz"]
[Site "Chess.com"]
[Date "2020.10.20"]
[Round "1"]
[White "GMBenjaminBok"]
[Black "Snegokhod"]
[Result "1-0"]
[WhiteElo "2941"]
[BlackElo "2449"]
[TimeControl "180+1"]
[EndTime "10:08:22 PDT"]
[Termination "GMBenjaminBok won on time"]

1. d4 {[%clk 0:02:59.3]} 1... Nf6 {[%clk 0:02:58.6]} 2. c4 {[%clk 0:02:58.3]}
2... g6 {[%clk 0:02:58.4]} 3. Nf3 {[%clk 0:02:58]} 3... Bg7 {[%clk 0:02:58.2]}
4. g3 {[%clk 0:02:58.7]} 4... O-O {[%clk 0:02:57.3]} 5. Bg2 {[%clk 0:02:59.4]}
5... d5 {[%clk 0:02:56.8]} 6. O-O {[%clk 0:02:59]} 6... c6 {[%clk 0:02:56.5]} 7.
b3 {[%clk 0:02:59]} 7... Ne4 {[%clk 0:02:55.1]} 8. Bb2 {[%clk 0:02:58.7]} 8...
Nd7 {[%clk 0:02:52.8]} 9. e3 {[%clk 0:02:57.4]} 9... Ndf6 {[%clk 0:02:51.2]} 10.
Qe2 {[%clk 0:02:46.6]} 10... b6 {[%clk 0:02:49.7]} 11. Ne5 {[%clk 0:02:42.9]}
11... Bb7 {[%clk 0:02:47.7]} 12. Rd1 {[%clk 0:02:31.8]} 12... Rc8 {[%clk
0:02:44.2]} 13. Nd2 {[%clk 0:02:27.3]} 13... Nxd2 {[%clk 0:02:43.2]} 14. Rxd2
{[%clk 0:02:27.7]} 14... e6 {[%clk 0:02:40.1]} 15. Rc1 {[%clk 0:02:23.9]} 15...
Nd7 {[%clk 0:02:37.9]} 16. Nd3 {[%clk 0:02:20]} 16... Qe7 {[%clk 0:02:32.4]} 17.
Rdc2 {[%clk 0:02:19.3]} 17... Ba6 {[%clk 0:02:21.5]} 18. Qd2 {[%clk 0:02:14.3]}
18... dxc4 {[%clk 0:02:17.2]} 19. bxc4 {[%clk 0:02:10.2]} 19... c5 {[%clk
0:02:17]} 20. Ba3 {[%clk 0:01:46.4]} 20... Rfd8 {[%clk 0:02:08.9]} 21. Qe1
{[%clk 0:01:46.8]} 21... Qe8 {[%clk 0:01:58.7]} 22. dxc5 {[%clk 0:01:45.1]}
22... Nxc5 {[%clk 0:01:49]} 23. Nxc5 {[%clk 0:01:45.3]} 23... bxc5 {[%clk
0:01:49]} 24. Qa5 {[%clk 0:01:45.7]} 24... Rd6 {[%clk 0:01:35.8]} 25. Bxc5
{[%clk 0:01:44.4]} 25... Rdc6 {[%clk 0:01:35.5]} 26. Bxa7 {[%clk 0:00:53.1]}
26... Rxc4 {[%clk 0:01:20.8]} 27. Rxc4 {[%clk 0:00:52.6]} 27... Rxc4 {[%clk
0:01:14.5]} 28. Rd1 {[%clk 0:00:50]} 28... Qb5 {[%clk 0:01:02]} 29. Qxb5 {[%clk
0:00:46.9]} 29... Bxb5 {[%clk 0:01:01.9]} 30. Bf1 {[%clk 0:00:46.9]} 30... Rc7
{[%clk 0:00:52.6]} 31. Bb6 {[%clk 0:00:40.7]} 31... Rc6 {[%clk 0:00:50.2]} 32.
Bxb5 {[%clk 0:00:35.2]} 32... Rxb6 {[%clk 0:00:50.1]} 33. Rd8+ {[%clk
0:00:35.9]} 33... Bf8 {[%clk 0:00:49.6]} 34. a4 {[%clk 0:00:36.8]} 34... Kg7
{[%clk 0:00:49]} 35. Rd7 {[%clk 0:00:36.9]} 35... Bb4 {[%clk 0:00:47.2]} 36. Ra7
{[%clk 0:00:35.6]} 36... Rb8 {[%clk 0:00:39.9]} 37. Kf1 {[%clk 0:00:33.7]} 37...
h5 {[%clk 0:00:39.7]} 38. Bc4 {[%clk 0:00:33.3]} 38... Kf6 {[%clk 0:00:39.3]}
39. a5 {[%clk 0:00:33.2]} 39... Rc8 {[%clk 0:00:38.4]} 40. Bb5 {[%clk
0:00:28.5]} 40... Rc5 {[%clk 0:00:36.1]} 41. Be8 {[%clk 0:00:27.9]} 41... Rxa5
{[%clk 0:00:36.1]} 42. Rxf7+ {[%clk 0:00:28.3]} 42... Ke5 {[%clk 0:00:33.6]} 43.
Rb7 {[%clk 0:00:27.8]} 43... Ra1+ {[%clk 0:00:25.5]} 44. Kg2 {[%clk 0:00:23.3]}
44... Be1 {[%clk 0:00:24.5]} 45. Bxg6 {[%clk 0:00:23.4]} 45... Ra2 {[%clk
0:00:24]} 46. Rf7 {[%clk 0:00:23.2]} 46... h4 {[%clk 0:00:22.7]} 47. gxh4 {[%clk
0:00:23]} 47... Ra4 {[%clk 0:00:20]} 48. h5 {[%clk 0:00:20.6]} 48... Kd6 {[%clk
0:00:18.9]} 49. h3 {[%clk 0:00:18.3]} 49... Bc3 {[%clk 0:00:18.3]} 50. h6 {[%clk
0:00:17.8]} 50... Rh4 {[%clk 0:00:17.5]} 51. h7 {[%clk 0:00:18.1]} 51... Bb2
{[%clk 0:00:16.3]} 52. Rb7 {[%clk 0:00:17.2]} 52... Bf6 {[%clk 0:00:15.3]} 53.
Bc2 {[%clk 0:00:16.7]} 53... Rh6 {[%clk 0:00:14.1]} 54. Kg3 {[%clk 0:00:16.4]}
54... Ke5 {[%clk 0:00:12.5]} 55. f4+ {[%clk 0:00:15.9]} 55... Kd6 {[%clk
0:00:12.9]} 56. Bd3 {[%clk 0:00:13.5]} 56... Bc3 {[%clk 0:00:12.1]} 57. e4
{[%clk 0:00:13.3]} 57... Kc5 {[%clk 0:00:08.3]} 58. e5 {[%clk 0:00:12.6]} 58...
Kd4 {[%clk 0:00:08.7]} 59. Bc2 {[%clk 0:00:11.6]} 59... Be1+ {[%clk 0:00:07.9]}
60. Kg2 {[%clk 0:00:11]} 60... Ke3 {[%clk 0:00:07.5]} 61. Rb8 {[%clk 0:00:11.3]}
61... Kxf4 {[%clk 0:00:01.3]} 62. h8=Q {[%clk 0:00:11.7]} 62... Rxh8 {[%clk
0:00:01.7]} 63. Rxh8 {[%clk 0:00:12.2]} 63... Kxe5 {[%clk 0:00:02.6]} 64. h4
{[%clk 0:00:12.5]} 1-0

[Event "*** Titled Tuesday Blitz"]
[Site "Chess.com"]
[Date "2020.10.20"]
[Round "1"]
[White "vovachesss"]
[Black "Pikachess999"]
[Result "1-0"]
[WhiteElo "2684"]
[BlackElo "2339"]
[TimeControl "180+1"]
[EndTime "10:08:23 PDT"]
[Termination "vovachesss won by resignation"]

1. e4 {[%clk 0:02:51]} 1... e6 {[%clk 0:02:56.7]} 2. Qe2 {[%clk 0:02:47.6]} 2...
Nf6 {[%clk 0:02:54.6]} 3. e5 {[%clk 0:02:30.3]} 3... Nd5 {[%clk 0:02:51.4]} 4.
d4 {[%clk 0:02:29.3]} 4... c5 {[%clk 0:02:45.6]} 5. c3 {[%clk 0:02:20.1]} 5...
d6 {[%clk 0:02:45.6]} 6. Nf3 {[%clk 0:02:08.3]} 6... Nc6 {[%clk 0:02:44.2]} 7.
g3 {[%clk 0:02:02.2]} 7... cxd4 {[%clk 0:02:35.3]} 8. cxd4 {[%clk 0:01:59.5]}
8... dxe5 {[%clk 0:02:35.6]} 9. dxe5 {[%clk 0:01:52.1]} 9... Qb6 {[%clk
0:02:27.2]} 10. Bg2 {[%clk 0:01:49.7]} 10... Bb4+ {[%clk 0:02:05.3]} 11. Nbd2
{[%clk 0:01:48.6]} 11... Nd4 {[%clk 0:02:02.9]} 12. Nxd4 {[%clk 0:01:47.6]}
12... Qxd4 {[%clk 0:02:03.8]} 13. O-O {[%clk 0:01:47.8]} 13... O-O {[%clk
0:02:03.9]} 14. Nc4 {[%clk 0:01:33.2]} 14... b5 {[%clk 0:01:55.2]} 15. Ne3
{[%clk 0:01:10.1]} 15... Qxe5 {[%clk 0:01:23.7]} 16. Qxb5 {[%clk 0:01:03.6]}
16... Rb8 {[%clk 0:01:18.8]} 17. Qc4 {[%clk 0:00:46.8]} 17... Nxe3 {[%clk
0:01:10]} 18. Bxe3 {[%clk 0:00:46.6]} 18... Qa5 {[%clk 0:00:53.8]} 19. Rfd1
{[%clk 0:00:37.2]} 19... Ba6 {[%clk 0:00:51.4]} 20. Qf4 {[%clk 0:00:33.3]} 20...
e5 {[%clk 0:00:46.8]} 21. Qg4 {[%clk 0:00:31]} 21... Rfd8 {[%clk 0:00:44.6]} 22.
Bxa7 {[%clk 0:00:20.4]} 22... Rbc8 {[%clk 0:00:40.1]} 23. a3 {[%clk 0:00:16.9]}
23... Bf8 {[%clk 0:00:39.5]} 24. b4 {[%clk 0:00:17]} 24... Qc7 {[%clk
0:00:38.3]} 25. Be3 {[%clk 0:00:15.5]} 25... Bd3 {[%clk 0:00:35.4]} 26. Rac1
{[%clk 0:00:14.6]} 26... Bc2 {[%clk 0:00:16.8]} 27. Rxd8 {[%clk 0:00:10.9]}
27... Qxd8 {[%clk 0:00:17.7]} 28. Bf1 {[%clk 0:00:04.5]} 28... f5 {[%clk
0:00:14]} 29. Qe2 {[%clk 0:00:04.2]} 29... Ba4 {[%clk 0:00:12.4]} 30. Rxc8
{[%clk 0:00:04.4]} 30... Qxc8 {[%clk 0:00:13.3]} 31. Qc4+ {[%clk 0:00:05.2]}
31... Qxc4 {[%clk 0:00:13.9]} 32. Bxc4+ {[%clk 0:00:06.1]} 32... Kh8 {[%clk
0:00:14.5]} 33. Bc5 {[%clk 0:00:03.3]} 33... Bxc5 {[%clk 0:00:14.1]} 34. bxc5
{[%clk 0:00:04.2]} 34... Bc6 {[%clk 0:00:14.4]} 35. Bb3 {[%clk 0:00:03.3]} 35...
g6 {[%clk 0:00:14.4]} 36. a4 {[%clk 0:00:03.9]} 36... Kg7 {[%clk 0:00:14.7]} 37.
a5 {[%clk 0:00:04.5]} 37... Kf6 {[%clk 0:00:14.8]} 38. a6 {[%clk 0:00:04.8]}
38... Ke7 {[%clk 0:00:14.4]} 39. Kf1 {[%clk 0:00:04.5]} 39... g5 {[%clk
0:00:12.6]} 40. Ke1 {[%clk 0:00:04.8]} 40... f4 {[%clk 0:00:12.9]} 41. Kd2
{[%clk 0:00:05]} 41... e4 {[%clk 0:00:13.3]} 42. Bc4 {[%clk 0:00:04.1]} 42... h6
{[%clk 0:00:13.2]} 43. Be2 {[%clk 0:00:04]} 43... Ke6 {[%clk 0:00:11.4]} 44. Kc3
{[%clk 0:00:03.2]} 44... Kd5 {[%clk 0:00:11.2]} 45. Bg4 {[%clk 0:00:02.9]} 45...
Kxc5 {[%clk 0:00:10.7]} 46. Bc8 {[%clk 0:00:03.1]} 46... Kb6 {[%clk 0:00:09.3]}
47. Kd4 {[%clk 0:00:03.3]} 47... Ba8 {[%clk 0:00:08.8]} 48. Bb7 {[%clk
0:00:02.6]} 48... Bxb7 {[%clk 0:00:08.7]} 49. axb7 {[%clk 0:00:03.5]} 49... Kxb7
{[%clk 0:00:07.8]} 50. Kxe4 {[%clk 0:00:04.1]} 50... fxg3 {[%clk 0:00:08.7]} 51.
fxg3 {[%clk 0:00:04.2]} 51... Kc7 {[%clk 0:00:09.6]} 52. Kf5 {[%clk 0:00:04.9]}
52... Kd6 {[%clk 0:00:09.9]} 53. Kg6 {[%clk 0:00:05.6]} 53... Ke5 {[%clk
0:00:10.3]} 54. Kxh6 {[%clk 0:00:06.1]} 54... Kf5 {[%clk 0:00:10.9]} 55. h3
{[%clk 0:00:06.5]} 55... g4 {[%clk 0:00:10.5]} 56. h4 {[%clk 0:00:06.9]} 56...
Ke4 {[%clk 0:00:10.9]} 57. h5 {[%clk 0:00:06.7]} 57... Kf3 {[%clk 0:00:11.8]}
58. Kg5 {[%clk 0:00:06.8]} 58... Kxg3 {[%clk 0:00:12.7]} 59. h6 {[%clk
0:00:07.4]} 59... Kf3 {[%clk 0:00:13.2]} 60. h7 {[%clk 0:00:08]} 60... g3 {[%clk
0:00:14.1]} 61. h8=Q {[%clk 0:00:08.1]} 61... g2 {[%clk 0:00:15]} 62. Qc3+
{[%clk 0:00:08.1]} 62... Kf2 {[%clk 0:00:15.3]} 63. Qd2+ {[%clk 0:00:08.3]}
63... Kf1 {[%clk 0:00:14.9]} 64. Qf4+ {[%clk 0:00:08.3]} 64... Ke1 {[%clk
0:00:15]} 65. Qg3+ {[%clk 0:00:08.9]} 65... Kf1 {[%clk 0:00:15.5]} 66. Qf3+
{[%clk 0:00:09.4]} 66... Kg1 {[%clk 0:00:16.4]} 67. Kh4 {[%clk 0:00:09.7]} 67...
Kh2 {[%clk 0:00:16.7]} 68. Qh3+ {[%clk 0:00:09.6]} 68... Kg1 {[%clk 0:00:17]}
69. Kg3 {[%clk 0:00:10.5]} 69... Kf1 {[%clk 0:00:17.1]} 70. Qxg2+ {[%clk
0:00:11.4]} 1-0

[Event "*** Titled Tuesday Blitz"]
[Site "Chess.com"]
[Date "2020.10.20"]
[Round "1"]
[White "WuinaterJr"]
[Black "IngOscarArdila"]
[Result "1/2-1/2"]
[WhiteElo "2503"]
[BlackElo "2171"]
[TimeControl "180+1"]
[EndTime "10:08:23 PDT"]
[Termination "Game drawn by repetition"]

1. d4 {[%clk 0:03:00.4]} 1... Nf6 {[%clk 0:02:58.9]} 2. c4 {[%clk 0:02:59.9]}
2... g6 {[%clk 0:02:58.4]} 3. Nf3 {[%clk 0:02:59.6]} 3... Bg7 {[%clk 0:02:58]}
4. g3 {[%clk 0:03:00]} 4... d6 {[%clk 0:02:57.5]} 5. Bg2 {[%clk 0:03:00.5]} 5...
O-O {[%clk 0:02:57.9]} 6. O-O {[%clk 0:03:01]} 6... Nbd7 {[%clk 0:02:58.2]} 7.
Nc3 {[%clk 0:03:01.5]} 7... e5 {[%clk 0:02:58.6]} 8. h3 {[%clk 0:02:57.7]} 8...
exd4 {[%clk 0:02:58.3]} 9. Nxd4 {[%clk 0:02:57]} 9... Re8 {[%clk 0:02:58.7]} 10.
Bf4 {[%clk 0:02:52.7]} 10... Nc5 {[%clk 0:02:56.8]} 11. Qd2 {[%clk 0:02:50.7]}
11... Nce4 {[%clk 0:02:54.4]} 12. Nxe4 {[%clk 0:02:44.5]} 12... Nxe4 {[%clk
0:02:55.3]} 13. Qd3 {[%clk 0:02:44.8]} 13... Nc5 {[%clk 0:02:51.6]} 14. Qd2
{[%clk 0:02:44]} 14... Qf6 {[%clk 0:02:41.7]} 15. Nb5 {[%clk 0:02:37]} 15... Ne6
{[%clk 0:02:32.9]} 16. Be3 {[%clk 0:02:22.4]} 16... Qxb2 {[%clk 0:02:25.6]} 17.
Qxb2 {[%clk 0:02:22.4]} 17... Bxb2 {[%clk 0:02:25]} 18. Rab1 {[%clk 0:02:22.9]}
18... Bg7 {[%clk 0:02:21.6]} 19. Rfd1 {[%clk 0:02:23.1]} 19... a6 {[%clk
0:02:20.6]} 20. Na3 {[%clk 0:02:22.3]} 20... Rb8 {[%clk 0:02:17.3]} 21. Nc2
{[%clk 0:02:20.5]} 21... b5 {[%clk 0:01:58.9]} 22. cxb5 {[%clk 0:02:16]} 22...
Rxb5 {[%clk 0:01:53.8]} 23. Rxb5 {[%clk 0:02:15.5]} 23... axb5 {[%clk
0:01:53.9]} 24. Bc6 {[%clk 0:02:15.8]} 24... Rd8 {[%clk 0:01:49.2]} 25. Bxb5
{[%clk 0:02:15.5]} 25... Bb7 {[%clk 0:01:45.1]} 26. Nb4 {[%clk 0:02:15.4]} 26...
Ra8 {[%clk 0:01:44.1]} 27. a4 {[%clk 0:02:08.1]} 27... Bc3 {[%clk 0:01:41.2]}
28. Nd5 {[%clk 0:02:07]} 28... Be5 {[%clk 0:01:28.3]} 29. f4 {[%clk 0:02:06]}
29... Bg7 {[%clk 0:01:27.2]} 30. Kf2 {[%clk 0:02:04.1]} 30... Kf8 {[%clk
0:01:21.4]} 31. Nb4 {[%clk 0:01:58.5]} 31... f5 {[%clk 0:01:10.6]} 32. Rc1
{[%clk 0:01:49]} 32... Bb2 {[%clk 0:01:05.4]} 33. Rc2 {[%clk 0:01:47.6]} 33...
Ba3 {[%clk 0:01:03.2]} 34. Nc6 {[%clk 0:01:47.4]} 34... Bc5 {[%clk 0:00:55.4]}
35. Ra2 {[%clk 0:01:41.5]} 35... Re8 {[%clk 0:00:48.4]} 36. Bxc5 {[%clk
0:01:41]} 36... Nxc5 {[%clk 0:00:48.1]} 37. a5 {[%clk 0:01:39.6]} 37... Ne4+
{[%clk 0:00:42.7]} 38. Kg1 {[%clk 0:01:14.9]} 38... Nc3 {[%clk 0:00:41.8]} 39.
a6 {[%clk 0:01:13.5]} 39... Ba8 {[%clk 0:00:37.7]} 40. Nd4 {[%clk 0:00:50.8]}
40... Nxa2 {[%clk 0:00:35.5]} 41. Bxe8 {[%clk 0:00:51.3]} 41... Kxe8 {[%clk
0:00:34.5]} 42. Ne6 {[%clk 0:00:52.2]} 42... Kd7 {[%clk 0:00:30.6]} 43. Ng5
{[%clk 0:00:52.4]} 43... Nb4 {[%clk 0:00:27]} 44. Nxh7 {[%clk 0:00:52.4]} 44...
Nxa6 {[%clk 0:00:26.6]} 45. Nf8+ {[%clk 0:00:52.3]} 45... Ke7 {[%clk 0:00:25.6]}
46. Nxg6+ {[%clk 0:00:52.9]} 46... Kf6 {[%clk 0:00:25.5]} 47. Nh4 {[%clk
0:00:50.8]} 47... c5 {[%clk 0:00:23.1]} 48. Kf2 {[%clk 0:00:50.2]} 48... d5
{[%clk 0:00:22.8]} 49. g4 {[%clk 0:00:50]} 49... fxg4 {[%clk 0:00:22.4]} 50.
hxg4 {[%clk 0:00:50.9]} 50... d4 {[%clk 0:00:22.4]} 51. g5+ {[%clk 0:00:51.4]}
51... Kg7 {[%clk 0:00:20.2]} 52. f5 {[%clk 0:00:51.6]} 52... Be4 {[%clk
0:00:19]} 53. f6+ {[%clk 0:00:51.1]} 53... Kf7 {[%clk 0:00:18.3]} 54. Kg3 {[%clk
0:00:51.7]} 54... c4 {[%clk 0:00:17.2]} 55. Kf4 {[%clk 0:00:49.5]} 55... Bg6
{[%clk 0:00:16.8]} 56. Nf3 {[%clk 0:00:47.2]} 56... c3 {[%clk 0:00:16.7]} 57.
Nxd4 {[%clk 0:00:46.9]} 57... c2 {[%clk 0:00:15.8]} 58. Nxc2 {[%clk 0:00:47]}
58... Bxc2 {[%clk 0:00:16.4]} 59. e4 {[%clk 0:00:47.7]} 59... Nc5 {[%clk
0:00:16]} 60. e5 {[%clk 0:00:48.4]} 60... Bg6 {[%clk 0:00:15.9]} 61. Ke3 {[%clk
0:00:48.2]} 61... Ne6 {[%clk 0:00:15.9]} 62. Kf3 {[%clk 0:00:45.7]} 62... Nxg5+
{[%clk 0:00:15.8]} 63. Kf4 {[%clk 0:00:46.5]} 63... Ne6+ {[%clk 0:00:16.4]} 64.
Ke3 {[%clk 0:00:46.9]} 64... Nd8 {[%clk 0:00:16.4]} 65. Kf4 {[%clk 0:00:47.2]}
65... Ke6 {[%clk 0:00:16.5]} 66. Kg5 {[%clk 0:00:47.8]} 66... Bf7 {[%clk
0:00:16.7]} 67. Kf4 {[%clk 0:00:47.4]} 67... Nc6 {[%clk 0:00:17.2]} 68. Kg5
{[%clk 0:00:47.7]} 68... Nxe5 {[%clk 0:00:18.1]} 69. Kh6 {[%clk 0:00:47.6]}
69... Nd7 {[%clk 0:00:18.5]} 70. Kg7 {[%clk 0:00:47.7]} 70... Nxf6 {[%clk
0:00:16.8]} 71. Kf8 {[%clk 0:00:48]} 71... Ne4 {[%clk 0:00:14.7]} 72. Kg7 {[%clk
0:00:48.1]} 72... Bh5 {[%clk 0:00:14.4]} 73. Kh6 {[%clk 0:00:48.4]} 73... Bf3
{[%clk 0:00:14.3]} 74. Kg7 {[%clk 0:00:48.7]} 74... Ke7 {[%clk 0:00:13.7]} 75.
Kh6 {[%clk 0:00:49.3]} 75... Kf6 {[%clk 0:00:11.6]} 76. Kh7 {[%clk 0:00:49.8]}
76... Ng5+ {[%clk 0:00:10.8]} 77. Kh6 {[%clk 0:00:50]} 77... Nf7+ {[%clk
0:00:10.5]} 78. Kh7 {[%clk 0:00:50.4]} 78... Ng5+ {[%clk 0:00:09.8]} 79. Kg8
{[%clk 0:00:51.3]} 79... Bh5 {[%clk 0:00:09.7]} 80. Kh8 {[%clk 0:00:52.2]} 80...
Bg6 {[%clk 0:00:09.1]} 81. Kg8 {[%clk 0:00:53.1]} 81... Ne6 {[%clk 0:00:07.1]}
82. Kh8 {[%clk 0:00:54]} 82... Ng5 {[%clk 0:00:06.7]} 83. Kg8 {[%clk 0:00:54.9]}
83... Bh7+ {[%clk 0:00:05.2]} 84. Kh8 {[%clk 0:00:55.8]} 84... Bg6 {[%clk
0:00:04.9]} 1/2-1/2